bitfinex/quotes_SOLUSD_20251019
["timestamp","ask_amount","ask_price","bid_price","bid_amount"]
[1760864550065,3.32887142,184.18,184.15,0.67]
[1760864550255,3.32887142,184.17,184.15,0.67]
[1760864550661,22.88,184.19,184.15,0.67]
[1760864550873,3.32887142,184.17,184.15,0.67]
[1760864551075,3.32887142,184.18,184.16,0.67]
[1760864551261,3.32887142,184.18,184.17,0.67]
[1760864551463,3.32887142,184.2,184.17,0.67]
[1760864552092,3.32887142,184.2,184.18,0.67]
[1760864552285,26.20887142,184.21,184.18,0.67]
[1760864552580,10.87647521,184.24,184.19,0.67]
[1760864552760,3.32887142,184.21,184.16,8.75893223]
[1760864552963,26.20887142,184.21,184.17,0.67]
[1760864553173,22.88,184.21,184.18,0.67]
[1760864553373,26.20887142,184.21,184.19,0.67]
[1760864553578,22.88,184.21,184.2,0.67]
[1760864553763,22.88,184.21,184.18,0.67]
[1760864553964,22.88,184.21,184.19,0.67]
[1760864554173,3.32887142,184.21,184.17,1.21297659]
[1760864554365,22.88,184.24,184.18,0.67]
[1760864554366,3.32887142,184.2,184.18,0.67]
[1760864554672,23.59,184.24,184.18,0.67]
[1760864554867,3.32887142,184.22,184.19,0.67]
[1760864555376,3.32887142,184.22,184.2,0.67]
[1760864555769,3.32887142,184.24,184.21,0.67]
[1760864555973,3.32887142,184.23,184.21,0.67]
[1760864556183,3.32887142,184.24,184.21,0.67]
[1760864556390,3.32887142,184.24,184.22,0.67]
[1760864557377,3.32887142,184.25,184.23,0.67]
[1760864559173,3.32887142,184.25,184.21,6.64143819]
[1760864559367,3.32887142,184.23,184.21,6.0985795]
[1760864559776,3.32887142,184.22,184.19,0.54291763]
[1760864559968,3.32887142,184.22,184.19,6.09914323]
[1760864560167,3.32887142,184.22,184.2,0.67]
[1760864560371,3.32887142,184.22,184.19,5.42914323]
[1760864560588,3.32887142,184.22,184.2,0.67]
[1760864562375,3.32887142,184.23,184.2,0.67]
[1760864562684,3.32887142,184.22,184.2,0.67]
[1760864564182,3.32887142,184.22,184.19,5.42914323]
[1760864564383,3.32887142,184.2,184.15,5.4303402]
[1760864564692,3.32887142,184.17,184.14,5.4305982]
[1760864564904,3.32887142,184.18,184.16,0.67]
[1760864565196,3.32887142,184.19,184.17,0.67]
[1760864565374,3.32887142,184.18,184.15,6.10033373]
[1760864565575,3.32887142,184.17,184.15,5.43033373]
[1760864565889,3.32887142,184.16,184.15,5.43033373]
[1760864566399,3.32887142,184.16,184.14,5.43059228]
[1760864566687,3.32887142,184.16,184.14,0.67]
[1760864566992,3.32887142,184.16,184.13,5.97398193]
[1760864567172,3.32887142,184.16,184.15,0.67]
[1760864567492,3.32887142,184.17,184.15,0.67]
[1760864567900,3.32887142,184.17,184.15,6.10034175]
[1760864568272,3.32887142,184.18,184.15,6.10034175]
[1760864568479,3.32887142,184.18,184.16,0.67]
[1760864568690,3.32887142,184.19,184.16,0.67]
[1760864570788,3.32887142,184.18,184.16,0.67]
[1760864570992,3.32887142,184.18,184.14,5.43065059]
[1760864571205,3.32887142,184.18,184.15,0.67]
[1760864571907,3.32887142,184.17,184.14,5.43065059]
[1760864572088,3.32887142,184.16,184.14,5.43065059]
[1760864572488,3.32887142,184.18,184.15,0.67]
[1760864572802,3.32887142,184.19,184.16,0.67]
[1760864573104,3.32887142,184.21,184.16,0.67]
[1760864573280,3.98887142,184.21,184.16,6.09998736]
[1760864573490,0.1,184.32,184.2,3.32887142]
[1760864573684,0.1,184.32,184.19,22.88]
[1760864573685,0.1,184.32,184.29,3.32887142]
[1760864573987,0.1,184.32,184.31,3.32887142]
[1760864574382,0.76,184.32,184.27,3.32887142]
[1760864574594,0.76,184.32,184.27,4.54155335]
[1760864574881,0.1,184.32,184.27,4.54155335]
[1760864575081,0.1,184.32,184.27,9.96809203]
[1760864575482,0.1,184.32,184.22,18.11189197]
[1760864575483,3.32887142,184.29,184.22,18.11189197]
[1760864575679,3.32887142,184.3,184.24,3.32887142]
[1760864575902,22.88,184.31,184.27,3.32887142]
[1760864576094,0.1,184.32,184.27,3.32887142]
[1760864576095,3.42887142,184.32,184.27,3.99887142]
[1760864576284,4.08887142,184.32,184.27,0.67]
[1760864577282,0.76,184.32,184.27,6.09674302]
[1760864577509,4.08887142,184.32,184.27,6.09674302]
[1760864578296,3.32887142,184.31,184.27,0.67]
[1760864578495,3.32887142,184.3,184.27,0.67]
[1760864579214,0.1,184.32,184.27,6.09671557]
[1760864579393,0.1,184.32,184.26,5.42710234]
[1760864579394,3.32887142,184.3,184.26,5.42710234]
[1760864579713,3.32887142,184.3,184.26,6.09710234]
[1760864580402,3.32887142,184.28,184.23,3.99887142]
[1760864580594,3.98887142,184.28,184.23,6.09798087]
[1760864580787,3.32887142,184.26,184.21,8.75716645]
[1760864580988,3.32887142,184.25,184.21,6.64115372]
[1760864581187,3.32887142,184.26,184.22,0.67]
[1760864581389,3.32887142,184.27,184.23,5.42799761]
[1760864581607,3.32887142,184.27,184.23,6.09799761]
[1760864581804,22.88,184.29,184.23,8.75686903]
[1760864581996,3.32887142,184.31,184.25,3.32887142]
[1760864582315,0.1,184.32,184.27,3.32887142]
[1760864582526,0.1,184.32,184.28,0.54265248]
[1760864582825,0.1,184.32,184.28,1.21265248]
[1760864583312,0.1,184.32,184.29,3.99887142]
[1760864583623,0.1,184.32,184.31,3.32887142]
[1760864583995,0.1,184.32,184.31,0.67]
[1760864584311,0.1,184.32,184.3,5.96852956]
[1760864584689,0.1,184.32,184.31,0.67]
[1760864585121,0.1,184.32,184.3,5.42593597]
[1760864585331,0.1,184.32,184.3,6.09593597]
[1760864586011,0.1,184.32,184.3,0.54259359]
[1760864586436,0.1,184.32,184.3,0.67]
[1760864587803,0.1,184.32,184.31,0.67]
[1760864588115,0.1,184.32,184.31,1.21256415]
[1760864588310,0.1,184.32,184.31,4.54143557]
[1760864589715,0.1,184.32,184.31,9.96707715]
[1760864590220,0.1,184.32,184.31,32.84707715]
[1760864591720,0.1,184.34,184.31,26.86005252]
[1760864591931,0.1,184.34,184.33,26.20887142]
[1760864592098,0.1,184.34,184.33,26.7513767]
[1760864592294,0.1,184.34,184.33,0.54250528]
[1760864592521,0.1,184.34,184.33,1.23250528]
[1760864593399,0.1,184.34,184.33,4.5613767]
[1760864594104,0.1,184.34,184.33,9.98642959]
[1760864594715,0.1,184.34,184.33,9.29642959]
[1760864595025,0.1,184.34,184.32,5.42530499]
[1760864595227,0.1,184.34,184.33,0.69]
[1760864595530,0.1,184.34,184.33,4.01887142]
[1760864596025,0.1,184.34,184.33,9.44392431]
[1760864598715,0.1,184.34,184.33,37.28392431]
[1760864601822,0.1,184.34,184.33,9.44392431]
[1760864602216,0.1,184.34,184.33,37.26392431]
[1760864603508,0.1,184.34,184.33,9.44392431]
[1760864603707,0.1,184.34,184.33,37.24392431]
[1760864605310,0.1,184.34,184.33,9.44392431]
[1760864605631,0.1,184.34,184.33,37.24392431]
[1760864607345,0.1,184.34,184.33,33.91505289]
[1760864607554,0.1,184.34,184.33,5.42505289]
[1760864607723,0.1,184.34,184.33,8.75392431]
[1760864607911,0.1,184.34,184.33,5.42505289]
[1760864608106,0.82,184.34,184.33,5.42505289]
[1760864608511,0.82,184.34,184.33,5.96755817]
[1760864608709,4.14887142,184.34,184.3,22.88]
[1760864608951,26.20887142,184.31,184.18,0.69]
[1760864609231,3.32887142,184.25,184.19,0.54291763]
[1760864609428,3.32887142,184.25,184.19,5.97206047]
[1760864609614,3.94887142,184.24,184.19,0.54291763]
[1760864609823,3.32887142,184.23,184.18,5.42947116]
[1760864610021,3.32887142,184.21,184.17,0.54297659]
[1760864610329,3.32887142,184.19,184.15,5.43015206]
[1760864610537,0.62,184.18,184.14,5.43063866]
[1760864610712,0.62,184.17,184.13,0.2]
[1760864610913,0.62,184.16,184.13,0.2]
[1760864611213,3.94887142,184.18,184.13,0.2]
[1760864611414,0.62,184.17,184.13,8.95978367]
[1760864611610,0.62,184.22,184.16,3.32887142]
[1760864611928,0.62,184.22,184.18,3.32887142]
[1760864612112,26.20887142,184.24,184.19,3.32887142]
[1760864612310,0.62,184.23,184.19,3.32887142]
[1760864612716,0.62,184.23,184.18,4.01887142]
[1760864612916,0.62,184.23,184.18,9.44817517]
[1760864613115,22.88,184.24,184.2,3.32887142]
[1760864613317,3.32887142,184.28,184.22,3.32887142]
[1760864613526,3.32887142,184.28,184.2,3.32887142]
[1760864613527,3.32887142,184.26,184.2,3.32887142]
[1760864613815,3.32887142,184.26,184.21,3.87173011]
[1760864614015,0.62,184.25,184.21,3.87173011]
[1760864614726,0.62,184.25,184.22,3.32887142]
[1760864614926,0.62,184.25,184.22,5.42829225]
[1760864615241,3.94887142,184.27,184.22,5.42829225]
[1760864615422,0.62,184.26,184.22,5.42829225]
[1760864615622,0.62,184.26,184.22,8.75716367]
[1760864616318,22.88,184.28,184.23,0.54279976]
[1760864616542,22.88,184.28,184.23,4.56167118]
[1760864616915,22.88,184.28,184.23,9.98942971]
[1760864617629,23.5,184.28,184.23,9.98942971]
[1760864617832,22.88,184.28,184.24,0.69]
[1760864618226,4.32887142,184.3,184.24,0.69]
[1760864618532,3.32887142,184.29,184.23,9.29942971]
[1760864619643,1.0,184.3,184.23,9.29942971]
[1760864619824,3.32887142,184.29,184.23,9.29942971]
[1760864620734,3.32887142,184.29,184.23,9.98942971]
[1760864621245,1.0,184.3,184.23,9.98942971]
[1760864621438,3.32887142,184.29,184.23,9.98942971]
[1760864623243,3.32887142,184.29,184.24,0.69]
[1760864623547,3.70887142,184.3,184.25,0.69]
[1760864623754,0.38,184.3,184.24,3.32887142]
[1760864623974,3.32887142,184.32,184.26,4.5515828]
[1760864624453,26.20887142,184.32,184.26,4.5515828]
[1760864624845,26.20887142,184.32,184.26,9.97844605]
[1760864625731,4.32887142,184.31,184.25,5.42740547]
[1760864625958,4.32887142,184.31,184.25,8.75627689]
[1760864626552,3.32887142,184.3,184.25,5.42740547]
[1760864626846,3.94887142,184.3,184.25,5.42740547]
[1760864627038,3.32887142,184.3,184.25,5.42740547]
[1760864627227,0.62,184.29,184.25,5.42740547]
[1760864628054,3.32887142,184.28,184.24,5.4275156]
[1760864628241,0.38,184.29,184.22,5.42829225]
[1760864628242,3.32887142,184.26,184.22,5.42829225]
[1760864628438,3.32887142,184.26,184.22,6.10829225]
[1760864628747,3.94887142,184.27,184.22,6.10829225]
[1760864629260,3.32887142,184.27,184.23,6.10786912]
[1760864629727,3.94887142,184.26,184.22,5.4282749]
[1760864629933,3.32887142,184.25,184.2,0.68]
[1760864630234,0.62,184.28,184.2,0.68]
[1760864630437,0.62,184.28,184.2,4.00887142]
[1760864630438,3.32887142,184.26,184.2,4.00887142]
[1760864630637,3.32887142,184.26,184.2,0.68]
[1760864630838,10.87647521,184.29,184.21,9.30024743]
[1760864631045,3.32887142,184.26,184.22,0.68]
[1760864631957,3.32887142,184.27,184.22,6.10821514]
[1760864632150,3.94887142,184.27,184.22,6.10821514]
[1760864632450,22.88,184.28,184.23,4.55167118]
[1760864632651,27.20887142,184.28,184.22,5.42821514]
[1760864632850,26.82887142,184.28,184.23,0.68]
[1760864633243,26.20887142,184.28,184.24,0.68]
[1760864633966,26.82887142,184.28,184.22,5.97108671]
[1760864634153,26.82887142,184.28,184.22,9.29995813]
[1760864635441,23.5,184.28,184.22,9.97995813]
[1760864635644,26.82887142,184.28,184.22,9.97995813]
[1760864636357,26.20887142,184.28,184.23,6.1078239]
[1760864637755,23.5,184.28,184.24,0.68]
[1760864637953,26.20887142,184.28,184.24,0.68]
[1760864638458,23.5,184.28,184.23,5.4278239]
[1760864638653,3.32887142,184.31,184.25,3.32887142]
[1760864638853,23.5,184.31,184.26,1.22271138]
[1760864639151,26.82887142,184.31,184.26,0.68]
[1760864639361,26.82887142,184.31,184.27,0.68]
[1760864639746,26.82887142,184.31,184.25,4.00887142]
[1760864640067,26.82887142,184.31,184.25,9.43602198]
[1760864640664,26.20887142,184.31,184.25,3.32887142]
[1760864640972,3.32887142,184.26,184.2,0.68]
[1760864641261,1.0,184.3,184.21,3.32887142]
[1760864641262,3.94887142,184.27,184.21,3.32887142]
[1760864641475,3.94887142,184.27,184.21,4.55173011]
[1760864641974,0.38,184.32,184.26,3.32887142]
[1760864642149,4.04887142,184.34,184.27,6.64950127]
[1760864642344,3.70887142,184.33,184.27,9.97837269]
[1760864642569,3.32887142,184.33,184.28,3.32887142]
[1760864642787,4.04887142,184.34,184.29,0.68]
[1760864642985,0.1,184.34,184.29,1.22262303]
[1760864643195,0.1,184.34,184.3,0.68]
[1760864643495,0.1,184.34,184.31,3.87143557]
[1760864643676,0.1,184.34,184.31,4.55143557]
[1760864643876,0.1,184.34,184.32,0.68]
[1760864644063,3.94887142,184.33,184.29,5.42596343]
[1760864644264,3.32887142,184.32,184.29,5.42596343]
[1760864644478,3.94887142,184.33,184.29,5.42596343]
[1760864644787,3.94887142,184.33,184.22,10.87647521]
[1760864644788,3.32887142,184.3,184.25,6.10740841]
[1760864644991,3.32887142,184.28,184.25,5.42740841]
[1760864645561,3.32887142,184.28,184.24,5.42769632]
[1760864645891,3.32887142,184.28,184.24,6.10769632]
[1760864646195,3.32887142,184.27,184.24,6.10769632]
[1760864646365,3.32887142,184.27,184.24,5.42769632]
[1760864646555,3.32887142,184.27,184.22,6.10802163]
[1760864646755,3.32887142,184.26,184.22,6.10802163]
[1760864646961,3.32887142,184.25,184.22,6.10802163]
[1760864647156,3.32887142,184.24,184.21,5.42857327]
[1760864647373,3.32887142,184.23,184.2,5.42887075]
[1760864647659,3.32887142,184.24,184.21,0.68]
[1760864648556,3.32887142,184.23,184.2,5.42887075]
[1760864648888,3.32887142,184.23,184.2,6.10884933]
[1760864649459,3.32887142,184.22,184.2,6.10884933]
[1760864650166,3.32887142,184.23,184.21,0.68]
[1760864650484,3.32887142,184.25,184.22,0.68]
[1760864651284,3.32887142,184.25,184.2,6.68173749]
[1760864651459,3.32887142,184.24,184.2,5.97173749]
[1760864651665,3.32887142,184.22,184.2,5.42884933]
[1760864651865,3.32887142,184.22,184.2,6.13884933]
[1760864653687,3.94887142,184.21,184.15,1.24303556]
[1760864653885,3.94887142,184.21,184.15,0.7]
[1760864653886,3.32887142,184.19,184.15,0.7]
[1760864654076,3.32887142,184.19,184.16,0.7]
[1760864654387,3.32887142,184.19,184.17,0.7]
[1760864654773,3.32887142,184.2,184.17,0.7]
[1760864654972,3.32887142,184.2,184.17,6.12963621]
[1760864655487,3.32887142,184.2,184.15,5.9731643]
[1760864655677,3.32887142,184.16,184.13,0.2]
[1760864655861,3.32887142,184.14,184.13,0.2]
[1760864656064,3.94887142,184.14,184.13,0.2]
[1760864656365,0.38,184.19,184.13,0.2]
[1760864656575,3.32887142,184.18,184.13,9.65980458]
[1760864656866,3.32887142,184.17,184.14,0.7]
[1760864657069,3.32887142,184.15,184.13,0.2]
[1760864657267,3.32887142,184.14,184.13,0.2]
[1760864657489,3.32887142,184.15,184.13,0.2]
[1760864657668,3.32887142,184.16,184.13,0.2]
[1760864657863,3.70887142,184.15,184.13,0.2]
[1760864658102,3.32887142,184.14,184.13,0.2]
[1760864658603,3.94887142,184.15,184.13,0.2]
[1760864659973,3.32887142,184.15,184.13,0.2]
[1760864660282,22.88,184.17,184.13,0.2]
[1760864660283,4.32887142,184.14,184.13,0.2]
[1760864661174,0.38,184.14,184.13,0.2]
[1760864661372,3.32887142,184.14,184.13,0.2]
[1760864661992,3.94887142,184.14,184.13,0.2]
[1760864662373,18.15421805,184.14,184.13,0.2]
[1760864662788,41.03421805,184.14,184.13,0.2]
[1760864663374,37.70534663,184.14,184.13,0.2]
[1760864663577,41.03421805,184.14,184.13,0.2]
[1760864663776,37.70534663,184.14,184.13,0.2]
[1760864666285,18.15421805,184.14,184.13,0.2]
[1760864666488,15.20534663,184.14,184.13,0.2]
[1760864667679,23.96486864,184.14,184.13,0.2]
[1760864668580,15.20534663,184.14,184.13,0.2]
[1760864669201,20.63599722,184.14,184.13,0.2]
[1760864669482,15.20534663,184.14,184.13,0.2]
[1760864669797,18.53421805,184.14,184.13,0.2]
[1760864671306,46.84486864,184.14,184.13,0.2]
[1760864671607,23.96486864,184.14,184.13,0.2]
[1760864673699,33.75647521,184.11,184.1,9.80371901]
[1760864674029,10.87647521,184.06,184.05,9.934573]
[1760864674180,14.58534663,184.06,184.05,9.934573]
[1760864674585,14.58534663,184.06,184.05,10.634573]
[1760864675184,14.58534663,184.06,184.05,9.934573]
[1760864676392,15.20534663,184.06,184.05,9.934573]
[1760864677106,22.79380715,184.06,184.05,9.934573]
[1760864677405,22.79380715,184.06,184.04,0.2]
[1760864677406,28.22681812,184.06,184.04,0.2]
[1760864677590,22.96752421,184.05,184.04,0.2]
[1760864677904,33.75647521,184.03,184.02,0.2]
[1760864678209,10.87647521,184.02,183.98,0.9724271]
[1760864678391,37.08534663,183.99,183.98,0.9724271]
[1760864678586,38.08534663,183.99,183.98,0.9724271]
[1760864678793,37.46534663,183.99,183.98,0.9724271]
[1760864679512,37.08534663,183.99,183.98,0.9724271]
[1760864680216,37.08534663,183.99,183.98,1.6724271]
[1760864681728,3.32887142,183.99,183.98,1.6724271]
[1760864681890,0.38,184.04,183.98,7.10779425]
[1760864682095,3.32887142,184.02,183.99,0.7]
[1760864682703,3.32887142,184.0,183.98,0.9724271]
[1760864683093,3.32887142,184.01,183.98,0.9724271]
[1760864683297,3.32887142,184.02,183.99,0.7]
[1760864683718,3.32887142,184.01,183.98,0.9724271]
[1760864683926,3.32887142,184.01,183.99,0.67]
[1760864684223,3.32887142,184.01,184.0,0.67]
[1760864685301,3.32887142,184.01,183.98,0.9724271]
[1760864685513,3.32887142,183.99,183.98,1.6424271]
[1760864685904,3.70887142,183.99,183.98,1.6424271]
[1760864686534,3.70887142,183.99,183.98,0.9724271]
[1760864687329,14.58534663,183.99,183.98,0.9724271]
[1760864687703,15.20534663,183.99,183.98,0.9724271]
[1760864688215,14.58534663,183.99,183.98,0.9724271]
[1760864688418,15.20534663,183.99,183.98,0.9724271]
[1760864688615,14.58534663,183.99,183.98,0.9724271]
[1760864688996,15.20534663,183.99,183.98,0.9724271]
[1760864689198,14.58534663,183.99,183.98,0.9724271]
[1760864690302,15.20534663,183.99,183.98,0.9724271]
[1760864692410,14.58534663,183.99,183.98,0.9724271]
[1760864693012,20.64042462,183.99,183.98,0.9724271]
[1760864693625,20.64042462,183.99,183.97,0.2]
[1760864693626,10.87647521,183.98,183.97,0.2]
[1760864693835,17.53421805,183.98,183.96,9.57628099]
[1760864694051,17.91421805,183.97,183.96,9.57628099]
[1760864695024,23.3498869,183.97,183.96,9.57628099]
[1760864695218,33.75647521,183.95,183.94,0.2]
[1760864695736,37.46534663,183.95,183.94,0.2]
[1760864697020,42.90160648,183.95,183.94,0.2]
[1760864697339,10.87647521,183.94,183.92,10.52713499]
[1760864697538,14.58534663,183.93,183.92,10.52713499]
[1760864698734,14.58534663,183.93,183.92,11.19713499]
[1760864699117,11.25647521,183.93,183.92,11.19713499]
[1760864699317,14.58534663,183.93,183.92,10.52713499]
[1760864700339,20.0221976,183.93,183.92,10.52713499]
[1760864700836,14.58534663,183.93,183.92,10.52713499]
[1760864701326,20.0221976,183.93,183.92,10.52713499]
[1760864701724,20.0221976,183.93,183.91,0.2]
[1760864702039,14.20534663,183.92,183.91,0.2]
[1760864703337,33.75647521,183.89,183.88,10.45798898]
[1760864703534,10.87647521,183.84,183.83,11.25884298]
[1760864703741,11.25647521,183.84,183.83,11.25884298]
[1760864704128,14.58534663,183.84,183.83,11.25884298]
[1760864705237,11.25647521,183.84,183.83,10.58884298]
[1760864705541,14.58534663,183.84,183.83,10.58884298]
[1760864705949,14.58534663,183.84,183.83,11.25884298]
[1760864706253,3.70887142,183.84,183.83,11.25884298]
[1760864706424,3.32887142,183.84,183.83,11.25884298]
[1760864706626,0.5,183.84,183.83,11.25884298]
[1760864706833,3.32887142,183.89,183.83,20.02752291]
[1760864707060,3.32887142,183.9,183.85,3.32887142]
[1760864707242,3.70887142,183.89,183.86,0.67]
[1760864708043,0.38,183.89,183.86,0.67]
[1760864708256,3.32887142,183.89,183.86,0.67]
[1760864708627,0.38,183.9,183.86,0.67]
[1760864708856,14.20534663,183.87,183.84,0.67]
[1760864709028,3.32887142,183.85,183.83,10.58884298]
[1760864709629,3.32887142,183.85,183.84,0.67]
[1760864710351,3.32887142,183.85,183.83,10.58884298]
[1760864710546,3.70887142,183.84,183.83,11.28884298]
[1760864711838,37.46534663,183.84,183.83,10.58884298]
[1760864712866,43.62485924,183.84,183.79,10.71969697]
[1760864713033,3.32887142,183.8,183.79,10.71969697]
[1760864713233,26.58887142,183.8,183.79,10.71969697]
[1760864713840,23.26,183.8,183.79,11.37969697]
[1760864714154,3.32887142,183.8,183.79,11.37969697]
[1760864714357,3.70887142,183.8,183.79,11.37969697]
[1760864714536,0.38,183.8,183.79,11.37969697]
[1760864714736,3.70887142,183.8,183.79,11.37969697]
[1760864715047,3.32887142,183.8,183.79,11.37969697]
[1760864715443,22.88,183.81,183.79,11.37969697]
[1760864715751,3.32887142,183.8,183.79,10.71969697]
[1760864715953,3.70887142,183.8,183.79,10.71969697]
[1760864716156,3.70887142,183.8,183.79,11.37969697]
[1760864716456,26.58887142,183.8,183.79,10.71969697]
[1760864716657,34.13647521,183.8,183.79,10.71969697]
[1760864716865,37.46534663,183.8,183.79,10.71969697]
[1760864717344,34.75647521,183.8,183.79,10.71969697]
[1760864717556,46.85491445,183.8,183.79,10.71969697]
[1760864717959,33.75647521,183.76,183.75,10.85055096]
[1760864718165,37.08534663,183.76,183.75,10.85055096]
[1760864719258,34.37647521,183.76,183.75,10.85055096]
[1760864719455,37.08534663,183.76,183.75,10.85055096]
[1760864719843,3.32887142,183.76,183.75,11.51055096]
[1760864720239,3.70887142,183.76,183.75,11.51055096]
[1760864720442,3.32887142,183.76,183.75,11.51055096]
[1760864720643,3.32887142,183.79,183.75,11.51055096]
[1760864720860,3.32887142,183.77,183.75,10.85055096]
[1760864721064,14.58534663,183.76,183.75,10.85055096]
[1760864721256,15.20534663,183.76,183.75,10.85055096]
[1760864721455,22.88,183.72,183.7,10.98140496]
[1760864721648,3.70887142,183.71,183.7,10.98140496]
[1760864721850,11.25647521,183.71,183.7,10.98140496]
[1760864722042,18.53421805,183.71,183.7,10.98140496]
[1760864722563,17.91421805,183.71,183.7,10.98140496]
[1760864722771,14.58534663,183.71,183.7,10.48140496]
[1760864723743,0.38,183.74,183.7,11.14140496]
[1760864723941,10.87647521,183.8,183.71,0.66]
[1760864724144,0.38,183.83,183.71,0.66]
[1760864724145,3.32887142,183.76,183.71,0.66]
[1760864724340,3.32887142,183.76,183.71,3.98887142]
[1760864724559,6.43992231,183.83,183.72,0.66]
[1760864724766,3.32887142,183.76,183.72,0.66]
[1760864724963,3.32887142,183.75,183.7,10.48140496]
[1760864725271,3.32887142,183.71,183.7,11.14140496]
[1760864725561,0.38,183.74,183.7,10.48140496]
[1760864725779,3.32887142,183.73,183.7,10.48140496]
[1760864725946,0.38,183.72,183.71,0.66]
[1760864726354,3.70887142,183.72,183.71,0.66]
[1760864726551,0.38,183.72,183.71,0.66]
[1760864727070,3.70887142,183.72,183.7,10.48140496]
[1760864727243,3.32887142,183.71,183.7,10.48140496]
[1760864727871,3.32887142,183.72,183.7,11.14140496]
[1760864728161,3.32887142,183.72,183.7,10.48140496]
[1760864728373,3.70887142,183.71,183.7,10.48140496]
[1760864728549,3.70887142,183.71,183.7,11.14140496]
[1760864729768,4.32887142,183.71,183.7,10.48140496]
[1760864729955,14.58534663,183.71,183.7,10.48140496]
[1760864730156,37.46534663,183.71,183.7,10.48140496]
[1760864731562,14.58534663,183.71,183.7,10.48140496]
[1760864732056,0.38,183.71,183.7,10.48140496]
[1760864732265,0.38,183.71,183.7,11.14140496]
[1760864732572,0.38,183.73,183.7,16.58506309]
[1760864732776,10.87647521,183.75,183.71,0.66]
[1760864732952,10.87647521,183.75,183.7,10.48140496]
[1760864732953,3.32887142,183.72,183.7,10.48140496]
[1760864733275,0.38,183.71,183.7,10.48140496]
[1760864733581,0.38,183.74,183.71,0.66]
[1760864733877,3.70887142,183.74,183.72,0.66]
[1760864734092,14.20534663,183.73,183.7,10.48140496]
[1760864734250,14.20534663,183.71,183.7,10.48140496]
[1760864734449,14.82534663,183.71,183.7,10.48140496]
[1760864734869,11.49647521,183.71,183.7,10.48140496]
[1760864735064,37.08534663,183.71,183.7,10.48140496]
[1760864736164,37.70534663,183.71,183.7,10.48140496]
[1760864736358,43.52870845,183.71,183.7,10.48140496]
[1760864736758,14.58534663,183.71,183.7,10.48140496]
[1760864737258,20.26870845,183.71,183.7,10.48140496]
[1760864737459,20.64870845,183.71,183.7,10.48140496]
[1760864738474,23.97757987,183.71,183.7,10.48140496]
[1760864738975,10.87647521,183.67,183.66,11.11225895]
[1760864739269,14.58534663,183.67,183.66,11.11225895]
[1760864742970,14.58534663,183.67,183.66,11.77225895]
[1760864743174,14.58534663,183.67,183.66,11.11225895]
[1760864743963,15.20534663,183.67,183.66,11.11225895]
[1760864744367,14.58534663,183.67,183.66,11.11225895]
[1760864744865,20.64989391,183.67,183.66,11.11225895]
[1760864745069,17.32102249,183.67,183.66,11.11225895]
[1760864745276,20.64989391,183.67,183.66,11.11225895]
[1760864745576,39.20161542,183.65,183.64,14.08050556]
[1760864745772,43.53048684,183.65,183.64,14.08050556]
[1760864746393,10.87647521,183.64,183.62,11.24311295]
[1760864746686,3.70887142,183.63,183.62,11.24311295]
[1760864747258,3.70887142,183.63,183.62,11.95311295]
[1760864747471,0.38,183.64,183.62,11.95311295]
[1760864747785,0.38,183.65,183.63,0.71]
[1760864748369,26.20887142,183.67,183.63,0.71]
[1760864748370,0.38,183.66,183.63,0.71]
[1760864749096,0.38,183.69,183.63,4.03887142]
[1760864749254,0.38,183.69,183.62,16.6891153]
[1760864749255,3.32887142,183.71,183.65,3.32887142]
[1760864749458,3.32887142,183.67,183.66,0.71]
[1760864750368,34.13647521,183.7,183.66,0.71]
[1760864750566,3.32887142,183.67,183.66,0.71]
[1760864750786,3.32887142,183.67,183.62,11.24311295]
[1760864751260,3.32887142,183.67,183.63,0.71]
[1760864751660,0.38,183.7,183.64,5.44543672]
[1760864751885,0.38,183.76,183.65,0.71]
[1760864752180,3.32887142,183.69,183.65,0.71]
[1760864752477,0.38,183.73,183.65,0.71]
[1760864752664,0.38,183.73,183.65,1.25451402]
[1760864752863,0.38,183.76,183.68,3.32887142]
[1760864753062,3.32887142,183.74,183.69,0.71]
[1760864753262,3.32887142,183.74,183.69,4.03887142]
[1760864753463,3.32887142,183.74,183.7,0.71]